[Event "Titled Tuesday Blitz December 7 2021"]
[White "Terry, Renato"]
[Black "Rakhmanov, Aleksandr"]
[WhiteFideId "3803457"]
[BlackFideId "4173708"]
[WhiteElo "2577"]
[BlackElo "2500"]
[Result "0-1"]
[Round "04"]
[TimeControl "180+1"]
[Date "2021.12.07"]
[WhiteClock "0:00:02"]
[BlackClock "0:00:02"]

1. d4 {[%clk 0:03:00]}  Nf6 {[%clk 0:02:46]} 2. Bg5 {[%clk 0:03:00]}  Ne4 {[%clk 0:02:44]} 3. Bf4 {[%clk 0:03:00]}  d6 {[%clk 0:02:43]} 4. f3 {[%clk 0:02:59]}  Nf6 {[%clk 0:02:42]} 5. e4 {[%clk 0:03:00]}  e5 {[%clk 0:02:38]} 6. dxe5 {[%clk 0:02:58]}  Nh5 {[%clk 0:02:38]} 7. Be3 {[%clk 0:02:55]}  dxe5 {[%clk 0:02:37]} 8. Qxd8+ {[%clk 0:02:54]}  Kxd8 {[%clk 0:02:38]} 9. Bc4 {[%clk 0:02:50]}  Ke8 {[%clk 0:02:37]} 10. Nc3 {[%clk 0:02:43]}  c6 {[%clk 0:02:35]} 11. O-O-O {[%clk 0:02:42]}  Nd7 {[%clk 0:02:22]} 12. Kb1 {[%clk 0:02:29]}  b5 {[%clk 0:02:15]} 13. Nxb5 {[%clk 0:01:56]}  cxb5 {[%clk 0:02:12]} 14. Bd5 {[%clk 0:01:56]}  Rb8 {[%clk 0:02:03]} 15. Bxa7 {[%clk 0:01:56]}  Nhf6 {[%clk 0:01:40]} 16. Bxb8 {[%clk 0:01:44]}  Nxb8 {[%clk 0:01:41]} 17. Ne2 {[%clk 0:01:41]}  Bc5 {[%clk 0:01:35]} 18. Bb3 {[%clk 0:01:29]}  Nbd7 {[%clk 0:01:04]} 19. a3 {[%clk 0:01:29]}  Ke7 {[%clk 0:01:02]} 20. g4 {[%clk 0:01:04]}  Nb6 {[%clk 0:00:50]} 21. h4 {[%clk 0:00:52]}  Bd7 {[%clk 0:00:31]} 22. Rd3 {[%clk 0:00:46]}  h5 {[%clk 0:00:26]} 23. g5 {[%clk 0:00:45]}  Ne8 {[%clk 0:00:23]} 24. Rhd1 {[%clk 0:00:42]}  Nc7 {[%clk 0:00:18]} 25. Bxf7 {[%clk 0:00:33]}  b4 {[%clk 0:00:14]} 26. axb4 {[%clk 0:00:29]}  Bxb4 {[%clk 0:00:15]} 27. Bb3 {[%clk 0:00:27]}  Bb5 {[%clk 0:00:15]} 28. c4 {[%clk 0:00:27]}  Bc6 {[%clk 0:00:15]} 29. Nc3 {[%clk 0:00:20]}  Nd7 {[%clk 0:00:14]} 30. Nd5+ {[%clk 0:00:19]}  Bxd5 {[%clk 0:00:14]} 31. exd5 {[%clk 0:00:15]}  Kd6 {[%clk 0:00:10]} 32. Re3 {[%clk 0:00:15]}  Rf8 {[%clk 0:00:10]} 33. Rh1 {[%clk 0:00:07]}  Rf4 {[%clk 0:00:10]} 34. Bc2 {[%clk 0:00:06]}  Nc5 {[%clk 0:00:10]} 35. Bg6 {[%clk 0:00:06]}  N7a6 {[%clk 0:00:09]} 36. Bxh5 {[%clk 0:00:05]}  Rxc4 {[%clk 0:00:09]} 37. Bg6 {[%clk 0:00:05]}  Rd4 {[%clk 0:00:08]} 38. h5 {[%clk 0:00:05]}  Bd2 {[%clk 0:00:09]} 39. Re2 {[%clk 0:00:05]}  Bxg5 {[%clk 0:00:08]} 40. Rg2 {[%clk 0:00:04]}  Bh6 {[%clk 0:00:09]} 41. Bc2 {[%clk 0:00:03]}  Nb4 {[%clk 0:00:08]} 42. Rg6+ {[%clk 0:00:03]}  Ke7 {[%clk 0:00:08]} 43. Re1 {[%clk 0:00:02]}  Rxd5 {[%clk 0:00:08]} 44. Be4 {[%clk 0:00:01]}  Nxe4 {[%clk 0:00:08]} 45. fxe4 {[%clk 0:00:02]}  Rb5 {[%clk 0:00:07]} 46. Rd1 {[%clk 0:00:01]}  Rb7 {[%clk 0:00:06]} 47. Rgd6 {[%clk 0:00:01]}  Be3 {[%clk 0:00:05]} 48. Rg6 {[%clk 0:00:02]}  Kf7 {[%clk 0:00:05]} 49. Rgd6 {[%clk 0:00:02]}  Bd4 {[%clk 0:00:04]} 50. Rf1+ {[%clk 0:00:02]}  Kg8 {[%clk 0:00:04]} 51. Rd1 {[%clk 0:00:02]}  Kh7 {[%clk 0:00:04]} 52. Rd2 {[%clk 0:00:03]}  Ra7 {[%clk 0:00:04]} 53. Rg2 {[%clk 0:00:03]}  Na6 {[%clk 0:00:04]} 54. h6 {[%clk 0:00:03]}  gxh6 {[%clk 0:00:04]} 55. Rh2 {[%clk 0:00:03]}  Be3 {[%clk 0:00:04]} 56. Rc2 {[%clk 0:00:02]}  Nb4 {[%clk 0:00:03]} 57. Rc3 {[%clk 0:00:02]}  Rg7 {[%clk 0:00:02]} 0-1


[Site "https://www.chess.com"]

[Event "Titled Tuesday Blitz December 7 2021"]
[White "Tologon tegin, Semetei"]
[Black "Matveeva, Olga"]
[WhiteFideId "13800574"]
[BlackFideId "24107018"]
[WhiteElo "2224"]
[BlackElo "2083"]
[Result "1-0"]
[Round "04"]
[TimeControl "180+1"]
[Date "2021.12.07"]
[WhiteClock "0:00:30"]
[BlackClock "0:00:13"]

1. d4 {[%clk 0:03:00]}  d5 {[%clk 0:02:59]} 2. Nc3 {[%clk 0:02:49]}  Nf6 {[%clk 0:02:57]} 3. Bf4 {[%clk 0:02:47]}  e6 {[%clk 0:02:56]} 4. Nb5 {[%clk 0:02:46]}  Na6 {[%clk 0:02:55]} 5. e3 {[%clk 0:02:45]}  Be7 {[%clk 0:02:53]} 6. a3 {[%clk 0:02:44]}  O-O {[%clk 0:02:52]} 7. c4 {[%clk 0:02:44]}  c6 {[%clk 0:02:49]} 8. Nc3 {[%clk 0:02:43]}  Nc7 {[%clk 0:02:46]} 9. Nf3 {[%clk 0:02:43]}  b6 {[%clk 0:02:31]} 10. Rc1 {[%clk 0:02:41]}  Bb7 {[%clk 0:02:29]} 11. h3 {[%clk 0:02:24]}  Rc8 {[%clk 0:02:16]} 12. Bd3 {[%clk 0:02:20]}  dxc4 {[%clk 0:02:15]} 13. Bxc4 {[%clk 0:02:20]}  Ncd5 {[%clk 0:02:15]} 14. Be5 {[%clk 0:02:11]}  c5 {[%clk 0:02:12]} 15. O-O {[%clk 0:02:05]}  cxd4 {[%clk 0:02:10]} 16. Qxd4 {[%clk 0:01:58]}  Nxc3 {[%clk 0:01:50]} 17. Rxc3 {[%clk 0:01:57]}  Qxd4 {[%clk 0:01:42]} 18. Nxd4 {[%clk 0:01:48]}  Ne4 {[%clk 0:01:39]} 19. Rc2 {[%clk 0:01:48]}  Rfd8 {[%clk 0:01:18]} 20. Rfc1 {[%clk 0:01:47]}  Kf8 {[%clk 0:01:09]} 21. b4 {[%clk 0:01:33]}  Bf6 {[%clk 0:01:05]} 22. Bxf6 {[%clk 0:01:28]}  Nxf6 {[%clk 0:01:05]} 23. Bxe6 {[%clk 0:01:21]}  Rxc2 {[%clk 0:00:46]} 24. Rxc2 {[%clk 0:01:22]}  fxe6 {[%clk 0:00:31]} 25. Nxe6+ {[%clk 0:01:21]}  Ke7 {[%clk 0:00:31]} 26. Nxd8 {[%clk 0:01:21]}  Kxd8 {[%clk 0:00:31]} 27. f3 {[%clk 0:01:22]}  Kd7 {[%clk 0:00:25]} 28. e4 {[%clk 0:01:19]}  Kd6 {[%clk 0:00:25]} 29. Kf2 {[%clk 0:01:19]}  Nd7 {[%clk 0:00:25]} 30. Ke3 {[%clk 0:01:18]}  Ne5 {[%clk 0:00:23]} 31. f4 {[%clk 0:01:18]}  Nd7 {[%clk 0:00:22]} 32. g4 {[%clk 0:01:17]}  b5 {[%clk 0:00:22]} 33. Rd2+ {[%clk 0:01:01]}  Ke7 {[%clk 0:00:19]} 34. Rc2 {[%clk 0:00:54]}  Kd6 {[%clk 0:00:18]} 35. Kd4 {[%clk 0:00:54]}  Nb6 {[%clk 0:00:17]} 36. Rc5 {[%clk 0:00:51]}  a6 {[%clk 0:00:16]} 37. e5+ {[%clk 0:00:49]}  Kd7 {[%clk 0:00:16]} 38. f5 {[%clk 0:00:48]}  Nc4 {[%clk 0:00:16]} 39. f6 {[%clk 0:00:30]}  gxf6 {[%clk 0:00:15]} 40. exf6 {[%clk 0:00:31]}  Ke6 {[%clk 0:00:13]} 41. Rc7 {[%clk 0:00:30]} 1-0


[Site "https://www.chess.com"]

[Event "Titled Tuesday Blitz December 7 2021"]
[White "Tomaszewski, Kacper"]
[Black "Zarubitski, Viachaslau"]
[WhiteFideId "1127373"]
[BlackFideId "13509373"]
[WhiteElo "2153"]
[BlackElo "2325"]
[Result "0-1"]
[Round "04"]
[TimeControl "180+1"]
[Date "2021.12.07"]
[WhiteClock "0:01:00"]
[BlackClock "0:01:44"]

1. Nf3 {[%clk 0:03:00]}  Nf6 {[%clk 0:02:54]} 2. g3 {[%clk 0:03:01]}  d6 {[%clk 0:02:53]} 3. Bg2 {[%clk 0:03:01]}  e5 {[%clk 0:02:54]} 4. d4 {[%clk 0:02:56]}  exd4 {[%clk 0:02:53]} 5. Nxd4 {[%clk 0:02:55]}  Be7 {[%clk 0:02:53]} 6. O-O {[%clk 0:02:55]}  O-O {[%clk 0:02:53]} 7. Nc3 {[%clk 0:02:55]}  c6 {[%clk 0:02:53]} 8. e4 {[%clk 0:02:55]}  Re8 {[%clk 0:02:52]} 9. h3 {[%clk 0:02:55]}  Nbd7 {[%clk 0:02:50]} 10. Kh2 {[%clk 0:02:52]}  Bf8 {[%clk 0:02:49]} 11. Nb3 {[%clk 0:02:41]}  Qc7 {[%clk 0:02:46]} 12. Bf4 {[%clk 0:02:36]}  Ne5 {[%clk 0:02:44]} 13. Nd2 {[%clk 0:02:16]}  b5 {[%clk 0:02:36]} 14. a3 {[%clk 0:02:15]}  h6 {[%clk 0:02:32]} 15. Be3 {[%clk 0:02:06]}  Rb8 {[%clk 0:02:30]} 16. Kh1 {[%clk 0:01:58]}  a5 {[%clk 0:02:14]} 17. f4 {[%clk 0:01:58]}  Ned7 {[%clk 0:02:13]} 18. Qf3 {[%clk 0:01:52]}  b4 {[%clk 0:02:08]} 19. axb4 {[%clk 0:01:52]}  axb4 {[%clk 0:02:09]} 20. Ra7 {[%clk 0:01:51]}  Rb7 {[%clk 0:02:08]} 21. Rxb7 {[%clk 0:01:49]}  Bxb7 {[%clk 0:02:09]} 22. Ne2 {[%clk 0:01:47]}  c5 {[%clk 0:02:08]} 23. g4 {[%clk 0:01:36]}  Nxe4 {[%clk 0:02:05]} 24. Nxe4 {[%clk 0:01:17]}  Bxe4 {[%clk 0:02:04]} 25. Qxe4 {[%clk 0:01:07]}  Rxe4 {[%clk 0:02:05]} 26. Bxe4 {[%clk 0:01:08]}  Nf6 {[%clk 0:01:47]} 27. Bg2 {[%clk 0:01:08]}  Qe7 {[%clk 0:01:44]} 28. Rf3 {[%clk 0:01:00]}  Nd5 {[%clk 0:01:44]} 0-1


[Site "https://www.chess.com"]

[Event "Titled Tuesday Blitz December 7 2021"]
[White "Vakhlamov, Igor L."]
[Black "Koutlas, Nikolaos"]
[WhiteFideId "24126748"]
[BlackFideId "25827138"]
[WhiteElo "2416"]
[BlackElo "1525"]
[Result "0-1"]
[Round "04"]
[TimeControl "180+1"]
[Date "2021.12.07"]
[WhiteClock "0:00:08"]
[BlackClock "0:00:07"]

1. e4 {[%clk 0:03:00]}  c5 {[%clk 0:02:59]} 2. Nf3 {[%clk 0:03:01]}  d6 {[%clk 0:02:59]} 3. Nc3 {[%clk 0:03:01]}  Nc6 {[%clk 0:02:57]} 4. Bb5 {[%clk 0:02:58]}  Nf6 {[%clk 0:02:56]} 5. e5 {[%clk 0:02:57]}  dxe5 {[%clk 0:02:53]} 6. Nxe5 {[%clk 0:02:58]}  Qc7 {[%clk 0:02:51]} 7. Nxc6 {[%clk 0:02:52]}  bxc6 {[%clk 0:02:52]} 8. Qf3 {[%clk 0:02:41]}  Bd7 {[%clk 0:02:44]} 9. Bc4 {[%clk 0:02:40]}  Bg4 {[%clk 0:02:41]} 10. Qg3 {[%clk 0:02:34]}  Qd7 {[%clk 0:02:34]} 11. O-O {[%clk 0:02:32]}  e6 {[%clk 0:02:33]} 12. h3 {[%clk 0:02:31]}  Bd6 {[%clk 0:02:31]} 13. Qh4 {[%clk 0:02:31]}  Bf5 {[%clk 0:02:21]} 14. d3 {[%clk 0:02:31]}  Rb8 {[%clk 0:02:13]} 15. Re1 {[%clk 0:02:25]}  O-O {[%clk 0:02:11]} 16. b3 {[%clk 0:01:56]}  Bc7 {[%clk 0:02:07]} 17. Bf4 {[%clk 0:01:48]}  h6 {[%clk 0:01:02]} 18. Bxc7 {[%clk 0:01:34]}  Qxc7 {[%clk 0:01:01]} 19. Ne4 {[%clk 0:01:31]}  Nd5 {[%clk 0:00:57]} 20. Nxc5 {[%clk 0:01:20]}  Kh7 {[%clk 0:00:51]} 21. a3 {[%clk 0:01:14]}  g5 {[%clk 0:00:48]} 22. Qg3 {[%clk 0:01:13]}  Qe7 {[%clk 0:00:37]} 23. Bxd5 {[%clk 0:01:08]}  cxd5 {[%clk 0:00:32]} 24. b4 {[%clk 0:01:08]}  a5 {[%clk 0:00:31]} 25. Qe5 {[%clk 0:01:07]}  Qa7 {[%clk 0:00:18]} 26. c3 {[%clk 0:01:00]}  Bg6 {[%clk 0:00:17]} 27. Qf6 {[%clk 0:00:53]}  axb4 {[%clk 0:00:16]} 28. axb4 {[%clk 0:00:54]}  Qc7 {[%clk 0:00:15]} 29. Na6 {[%clk 0:00:53]}  Qd8 {[%clk 0:00:14]} 30. Qd4 {[%clk 0:00:46]}  Rb6 {[%clk 0:00:13]} 31. Nc5 {[%clk 0:00:45]}  Re8 {[%clk 0:00:10]} 32. Ra7 {[%clk 0:00:44]}  Qb8 {[%clk 0:00:08]} 33. Nxe6 {[%clk 0:00:35]}  Rexe6 {[%clk 0:00:05]} 34. Rea1 {[%clk 0:00:26]}  Rf6 {[%clk 0:00:04]} 35. g3 {[%clk 0:00:23]}  Rbe6 {[%clk 0:00:02]} 36. Qxd5 {[%clk 0:00:20]}  Qe5 {[%clk 0:00:02]} 37. Qd8 {[%clk 0:00:12]}  Qf5 {[%clk 0:00:03]} 38. Ra8 {[%clk 0:00:10]}  Qxf2+ {[%clk 0:00:02]} 39. Kh1 {[%clk 0:00:11]}  Qf3+ {[%clk 0:00:03]} 40. Kg1 {[%clk 0:00:09]}  Qf2+ {[%clk 0:00:04]} 41. Kh1 {[%clk 0:00:10]}  Qf3+ {[%clk 0:00:04]} 42. Kg1 {[%clk 0:00:10]}  Qxg3+ {[%clk 0:00:04]} 43. Kh1 {[%clk 0:00:11]}  Qxh3+ {[%clk 0:00:05]} 44. Kg1 {[%clk 0:00:12]}  Qg4+ {[%clk 0:00:05]} 45. Kh1 {[%clk 0:00:12]}  Be4+ {[%clk 0:00:06]} 46. dxe4 {[%clk 0:00:11]}  Qxe4+ {[%clk 0:00:07]} 47. Kg1 {[%clk 0:00:11]}  Qe3+ {[%clk 0:00:06]} 48. Kh1 {[%clk 0:00:11]}  Kg6 {[%clk 0:00:06]} 49. Qd1 {[%clk 0:00:08]}  Rf4 {[%clk 0:00:05]} 50. Rg8+ {[%clk 0:00:07]}  Kh7 {[%clk 0:00:04]} 51. Raa8 {[%clk 0:00:05]}  Qh3+ {[%clk 0:00:04]} 52. Kg1 {[%clk 0:00:05]}  Rg4+ {[%clk 0:00:04]} 53. Kf2 {[%clk 0:00:06]}  Rf6+ {[%clk 0:00:04]} 54. Ke2 {[%clk 0:00:06]}  Re4+ {[%clk 0:00:04]} 55. Kd2 {[%clk 0:00:06]}  Rd6+ {[%clk 0:00:05]} 56. Kc1 {[%clk 0:00:06]}  Rxd1+ {[%clk 0:00:05]} 57. Kxd1 {[%clk 0:00:07]}  Qd3+ {[%clk 0:00:05]} 58. Kc1 {[%clk 0:00:07]}  Qxc3+ {[%clk 0:00:06]} 59. Kd1 {[%clk 0:00:08]}  Re1# {[%clk 0:00:07]} 0-1


[Site "https://www.chess.com"]

[Event "Titled Tuesday Blitz December 7 2021"]
[White "Yang, Kaiqi"]
[Black "Faizrakhmanov, Ramil"]
[WhiteFideId "8604398"]
[BlackFideId "24103209"]
[WhiteElo "2373"]
[BlackElo "2396"]
[Result "0-1"]
[Round "04"]
[TimeControl "180+1"]
[Date "2021.12.07"]
[WhiteClock "0:00:03"]
[BlackClock "0:00:20"]

1. e4 {[%clk 0:03:00]}  c5 {[%clk 0:02:59]} 2. Nf3 {[%clk 0:03:00]}  d6 {[%clk 0:02:59]} 3. Bb5+ {[%clk 0:03:00]}  Nd7 {[%clk 0:02:59]} 4. a4 {[%clk 0:02:59]}  Nf6 {[%clk 0:02:58]} 5. Nc3 {[%clk 0:02:59]}  a6 {[%clk 0:02:58]} 6. Be2 {[%clk 0:02:46]}  g6 {[%clk 0:02:53]} 7. O-O {[%clk 0:02:40]}  Bg7 {[%clk 0:02:53]} 8. d3 {[%clk 0:02:39]}  O-O {[%clk 0:02:52]} 9. Qd2 {[%clk 0:02:23]}  b6 {[%clk 0:02:48]} 10. Qg5 {[%clk 0:02:21]}  Bb7 {[%clk 0:02:44]} 11. Qh4 {[%clk 0:02:21]}  h5 {[%clk 0:02:33]} 12. Bg5 {[%clk 0:02:14]}  Bc6 {[%clk 0:02:32]} 13. Nd2 {[%clk 0:02:04]}  b5 {[%clk 0:02:28]} 14. f4 {[%clk 0:01:45]}  c4 {[%clk 0:02:20]} 15. f5 {[%clk 0:01:33]}  b4 {[%clk 0:02:16]} 16. Nd1 {[%clk 0:01:29]}  cxd3 {[%clk 0:02:15]} 17. cxd3 {[%clk 0:01:24]}  Qb6+ {[%clk 0:02:05]} 18. Be3 {[%clk 0:01:12]}  Qb7 {[%clk 0:02:04]} 19. Nc4 {[%clk 0:00:59]}  a5 {[%clk 0:01:52]} 20. Nf2 {[%clk 0:00:41]}  d5 {[%clk 0:01:51]} 21. Nd2 {[%clk 0:00:41]}  dxe4 {[%clk 0:01:50]} 22. dxe4 {[%clk 0:00:38]}  Ne5 {[%clk 0:01:48]} 23. Nc4 {[%clk 0:00:19]}  Nxe4 {[%clk 0:01:32]} 24. Nxe4 {[%clk 0:00:18]}  Bxe4 {[%clk 0:01:32]} 25. Rf2 {[%clk 0:00:13]}  Nd3 {[%clk 0:01:08]} 26. Bxd3 {[%clk 0:00:12]}  Bxd3 {[%clk 0:01:09]} 27. fxg6 {[%clk 0:00:11]}  Bxg6 {[%clk 0:01:08]} 28. Raf1 {[%clk 0:00:09]}  Rad8 {[%clk 0:00:50]} 29. Qg3 {[%clk 0:00:06]}  Rd3 {[%clk 0:00:46]} 30. Ne5 {[%clk 0:00:04]}  Bxe5 {[%clk 0:00:42]} 31. Qxe5 {[%clk 0:00:05]}  Qe4 {[%clk 0:00:41]} 32. Qxe4 {[%clk 0:00:03]}  Bxe4 {[%clk 0:00:42]} 33. Bh6 {[%clk 0:00:03]}  Bg6 {[%clk 0:00:36]} 34. Bxf8 {[%clk 0:00:03]}  Kxf8 {[%clk 0:00:36]} 35. Re1 {[%clk 0:00:03]}  Rd5 {[%clk 0:00:29]} 36. Rfe2 {[%clk 0:00:02]}  e6 {[%clk 0:00:29]} 37. Kf2 {[%clk 0:00:02]}  b3 {[%clk 0:00:28]} 38. Ke3 {[%clk 0:00:02]}  Rd3+ {[%clk 0:00:27]} 39. Kf2 {[%clk 0:00:02]}  Rd4 {[%clk 0:00:28]} 40. Ke3 {[%clk 0:00:02]}  Rxa4 {[%clk 0:00:28]} 41. Rd2 {[%clk 0:00:02]}  Re4+ {[%clk 0:00:27]} 42. Kf2 {[%clk 0:00:02]}  Rc4 {[%clk 0:00:27]} 43. Ke3 {[%clk 0:00:01]}  a4 {[%clk 0:00:27]} 44. Ra1 {[%clk 0:00:01]}  Kg7 {[%clk 0:00:26]} 45. g3 {[%clk 0:00:01]}  Kf6 {[%clk 0:00:24]} 46. Rd4 {[%clk 0:00:01]}  Rc2 {[%clk 0:00:24]} 47. Raxa4 {[%clk 0:00:01]}  Rxb2 {[%clk 0:00:23]} 48. Rab4 {[%clk 0:00:02]}  Rb1 {[%clk 0:00:20]} 49. h4 {[%clk 0:00:01]}  b2 {[%clk 0:00:19]} 50. Kd2 {[%clk 0:00:02]}  Rg1 {[%clk 0:00:18]} 51. Rxb2 {[%clk 0:00:01]}  Rg2+ {[%clk 0:00:18]} 52. Kc3 {[%clk 0:00:01]}  Rxg3+ {[%clk 0:00:19]} 53. Kd2 {[%clk 0:00:01]}  Rg2+ {[%clk 0:00:18]} 54. Kc3 {[%clk 0:00:02]}  Rxb2 {[%clk 0:00:19]} 55. Kxb2 {[%clk 0:00:02]}  Ke5 {[%clk 0:00:20]} 56. Kc3 {[%clk 0:00:02]}  f5 {[%clk 0:00:20]} 57. Ra4 {[%clk 0:00:03]}  f4 {[%clk 0:00:20]} 58. Kd2 {[%clk 0:00:03]}  Be4 {[%clk 0:00:19]} 59. Ke2 {[%clk 0:00:03]}  Bd5 {[%clk 0:00:19]} 60. Kf2 {[%clk 0:00:03]}  Kf5 {[%clk 0:00:20]} 61. Ra5 {[%clk 0:00:02]}  Kg4 {[%clk 0:00:20]} 62. Ra8 {[%clk 0:00:01]}  Kxh4 {[%clk 0:00:20]} 63. Rg8 {[%clk 0:00:02]}  e5 {[%clk 0:00:20]} 64. Rg7 {[%clk 0:00:02]}  e4 {[%clk 0:00:20]} 65. Ke2 {[%clk 0:00:03]}  e3 {[%clk 0:00:20]} 66. Rg8 {[%clk 0:00:03]}  Bxg8 {[%clk 0:00:20]} 0-1


[Site "https://www.chess.com"]

[Event "Titled Tuesday Blitz December 7 2021"]
[White "Alinasab, Mobina"]
[Black "Khanin, Semen"]
[WhiteFideId "12528897"]
[BlackFideId "4111990"]
[WhiteElo "2061"]
[BlackElo "2442"]
[Result "1-0"]
[Round "05"]
[TimeControl "180+1"]
[Date "2021.12.07"]
[WhiteClock "0:00:02"]
[BlackClock "0:00:01"]

1. e4 {[%clk 0:03:00]}  e5 {[%clk 0:02:57]} 2. Nf3 {[%clk 0:03:00]}  Nc6 {[%clk 0:02:57]} 3. Bb5 {[%clk 0:03:01]}  a6 {[%clk 0:02:55]} 4. Ba4 {[%clk 0:03:01]}  Bc5 {[%clk 0:02:55]} 5. c3 {[%clk 0:02:57]}  Ba7 {[%clk 0:02:50]} 6. O-O {[%clk 0:02:56]}  Nge7 {[%clk 0:02:50]} 7. d4 {[%clk 0:02:44]}  Ng6 {[%clk 0:02:51]} 8. d5 {[%clk 0:02:42]}  Nce7 {[%clk 0:02:51]} 9. d6 {[%clk 0:02:40]}  cxd6 {[%clk 0:02:50]} 10. Qxd6 {[%clk 0:02:41]}  O-O {[%clk 0:02:43]} 11. Rd1 {[%clk 0:02:22]}  b5 {[%clk 0:02:43]} 12. Bb3 {[%clk 0:02:09]}  Bb8 {[%clk 0:02:27]} 13. Qd3 {[%clk 0:01:59]}  d6 {[%clk 0:02:24]} 14. a4 {[%clk 0:01:48]}  bxa4 {[%clk 0:02:03]} 15. Rxa4 {[%clk 0:01:49]}  h6 {[%clk 0:02:01]} 16. Na3 {[%clk 0:01:36]}  Bd7 {[%clk 0:01:58]} 17. Rxa6 {[%clk 0:01:35]}  Rxa6 {[%clk 0:01:56]} 18. Qxa6 {[%clk 0:01:36]}  Bc6 {[%clk 0:01:51]} 19. Qd3 {[%clk 0:01:22]}  Kh7 {[%clk 0:01:44]} 20. Nc4 {[%clk 0:01:18]}  f5 {[%clk 0:01:44]} 21. Nfxe5 {[%clk 0:00:53]}  Bxe4 {[%clk 0:01:10]} 22. Qe2 {[%clk 0:00:35]}  Nxe5 {[%clk 0:01:06]} 23. Nxe5 {[%clk 0:00:27]}  Qb6 {[%clk 0:00:53]} 24. Nd7 {[%clk 0:00:26]}  Qxb3 {[%clk 0:00:53]} 25. Nxf8+ {[%clk 0:00:26]}  Kg8 {[%clk 0:00:54]} 26. Nd7 {[%clk 0:00:25]}  Bc7 {[%clk 0:00:46]} 27. Bf4 {[%clk 0:00:19]}  Qa4 {[%clk 0:00:18]} 28. Bxd6 {[%clk 0:00:16]}  Qxd7 {[%clk 0:00:19]} 29. Qc4+ {[%clk 0:00:07]}  Nd5 {[%clk 0:00:17]} 30. Bxc7 {[%clk 0:00:04]}  Qxc7 {[%clk 0:00:16]} 31. Qxc7 {[%clk 0:00:04]}  Nxc7 {[%clk 0:00:17]} 32. c4 {[%clk 0:00:05]}  Kf8 {[%clk 0:00:16]} 33. b4 {[%clk 0:00:04]}  Ke7 {[%clk 0:00:17]} 34. b5 {[%clk 0:00:04]}  Ne6 {[%clk 0:00:16]} 35. f3 {[%clk 0:00:04]}  Bb7 {[%clk 0:00:15]} 36. Kf2 {[%clk 0:00:03]}  f4 {[%clk 0:00:15]} 37. g3 {[%clk 0:00:03]}  g5 {[%clk 0:00:15]} 38. gxf4 {[%clk 0:00:04]}  gxf4 {[%clk 0:00:14]} 39. Ra1 {[%clk 0:00:04]}  Nc5 {[%clk 0:00:14]} 40. Re1+ {[%clk 0:00:04]}  Kf6 {[%clk 0:00:14]} 41. Rg1 {[%clk 0:00:04]}  Nd3+ {[%clk 0:00:14]} 42. Ke2 {[%clk 0:00:05]}  Ne5 {[%clk 0:00:14]} 43. Rc1 {[%clk 0:00:04]}  Bxf3+ {[%clk 0:00:14]} 44. Kd2 {[%clk 0:00:04]}  Be4 {[%clk 0:00:04]} 45. Kc3 {[%clk 0:00:05]}  f3 {[%clk 0:00:04]} 46. Kd4 {[%clk 0:00:04]}  Kf5 {[%clk 0:00:02]} 47. Rf1 {[%clk 0:00:04]}  Kf4 {[%clk 0:00:02]} 48. c5 {[%clk 0:00:05]}  Nd3 {[%clk 0:00:01]} 49. c6 {[%clk 0:00:04]}  Ne5 {[%clk 0:00:02]} 50. Kc5 {[%clk 0:00:03]}  Ke3 {[%clk 0:00:01]} 51. c7 {[%clk 0:00:03]}  Bf5 {[%clk 0:00:01]} 52. Kd6 {[%clk 0:00:02]} 1-0


[Site "https://www.chess.com"]

[Event "Titled Tuesday Blitz December 7 2021"]
[White "Al-Tarboush, Ward"]
[Black "Nilsen, Tobias Lang"]
[WhiteFideId "7601450"]
[BlackFideId "1521624"]
[WhiteElo "2276"]
[BlackElo "1979"]
[Result "0-1"]
[Round "05"]
[TimeControl "180+1"]
[Date "2021.12.07"]
[WhiteClock "0:00:26"]
[BlackClock "0:00:24"]

1. e4 {[%clk 0:03:00]}  c5 {[%clk 0:02:59]} 2. Nf3 {[%clk 0:02:55]}  e6 {[%clk 0:02:59]} 3. d4 {[%clk 0:02:55]}  cxd4 {[%clk 0:03:00]} 4. Nxd4 {[%clk 0:02:55]}  Nc6 {[%clk 0:03:00]} 5. Nc3 {[%clk 0:02:54]}  Qc7 {[%clk 0:02:58]} 6. Be3 {[%clk 0:02:52]}  a6 {[%clk 0:02:57]} 7. Qd2 {[%clk 0:02:52]}  Nf6 {[%clk 0:02:55]} 8. O-O-O {[%clk 0:02:52]}  Bb4 {[%clk 0:02:56]} 9. f3 {[%clk 0:02:52]}  d6 {[%clk 0:02:53]} 10. g4 {[%clk 0:02:49]}  h6 {[%clk 0:02:52]} 11. h4 {[%clk 0:02:48]}  Bd7 {[%clk 0:02:45]} 12. Bd3 {[%clk 0:02:47]}  Nxd4 {[%clk 0:02:39]} 13. Bxd4 {[%clk 0:02:45]}  e5 {[%clk 0:02:40]} 14. Be3 {[%clk 0:02:41]}  Bxc3 {[%clk 0:02:39]} 15. bxc3 {[%clk 0:02:40]}  O-O-O {[%clk 0:02:38]} 16. g5 {[%clk 0:02:39]}  hxg5 {[%clk 0:02:38]} 17. hxg5 {[%clk 0:02:40]}  Nh5 {[%clk 0:02:38]} 18. Qf2 {[%clk 0:02:37]}  Qxc3 {[%clk 0:02:30]} 19. Bb6 {[%clk 0:02:32]}  Qa3+ {[%clk 0:02:24]} 20. Kd2 {[%clk 0:02:32]}  Rde8 {[%clk 0:02:12]} 21. Rb1 {[%clk 0:02:29]}  Nf4 {[%clk 0:02:07]} 22. Rxh8 {[%clk 0:02:28]}  Rxh8 {[%clk 0:02:06]} 23. Rb3 {[%clk 0:02:28]}  Qxa2 {[%clk 0:02:01]} 24. Ba7 {[%clk 0:02:01]}  Nxd3 {[%clk 0:01:44]} 25. Rxd3 {[%clk 0:01:51]}  Ba4 {[%clk 0:01:29]} 26. Rc3+ {[%clk 0:01:47]}  Kd7 {[%clk 0:01:28]} 27. Bb6 {[%clk 0:01:46]}  Bc6 {[%clk 0:01:24]} 28. f4 {[%clk 0:01:39]}  exf4 {[%clk 0:01:17]} 29. Qxf4 {[%clk 0:01:39]}  Qe6 {[%clk 0:01:17]} 30. Rf3 {[%clk 0:01:36]}  f6 {[%clk 0:01:04]} 31. gxf6 {[%clk 0:01:35]}  gxf6 {[%clk 0:01:05]} 32. Rg3 {[%clk 0:01:33]}  Rh2+ {[%clk 0:01:04]} 33. Kc1 {[%clk 0:01:32]}  Rh1+ {[%clk 0:00:56]} 34. Kd2 {[%clk 0:01:28]}  Qxe4 {[%clk 0:00:44]} 35. Qf2 {[%clk 0:00:59]}  Qb4+ {[%clk 0:00:41]} 36. Ke2 {[%clk 0:00:45]}  Bb5+ {[%clk 0:00:39]} 37. Rd3 {[%clk 0:00:40]}  Qg4+ {[%clk 0:00:37]} 38. Kd2 {[%clk 0:00:37]}  Bxd3 {[%clk 0:00:35]} 39. cxd3 {[%clk 0:00:36]}  Qh4 {[%clk 0:00:27]} 40. Qf5+ {[%clk 0:00:33]}  Kc6 {[%clk 0:00:25]} 41. Bf2 {[%clk 0:00:26]}  Qg5+ {[%clk 0:00:24]} 0-1


[Site "https://www.chess.com"]